fUSD/lending_fUSD_20240606
["ID","MTS","AMOUNT","RATE_DAILY","PERIOD"]
[328649924,1717677040754,-1992.66195836,0.00025373,2]
[328649925,1717677040779,-7175.70975753,0.00025373,2]
[328649926,1717677040789,-885.55651095,0.0002729,2]
[328649927,1717677040799,-26183.30285613,0.00029,2]
[328649928,1717677040810,-1130.54686907,0.00029,2]
[328650067,1717677043008,-885.55651094,0.00027663,2]
[328650069,1717677043018,-396.57076707,0.00028304,2]
[328650070,1717677043027,-9516.33378913,0.00029,2]
[328650071,1717677043105,-701.33067573,0.00029,2]
[328650072,1717677043204,-910.64305382,0.00029,2]
[328650077,1717677043625,-655.16092701,0.00029,2]
[328650078,1717677043643,-95000.85952901,0.00029,2]
[328650081,1717677043698,-4764.44253311,0.00029,2]
[328650084,1717677047292,-337.08969517,0.00029,2]
[328650085,1717677047304,-627.44,0.00029,2]
[328650086,1717677047315,-2544.01616,0.00029,2]
[328650087,1717677047327,-12326.09817694,0.00029,2]
[328650088,1717677047497,-14310.39633316,0.00029,2]
[328650099,1717677062567,16887.12741827,0.00010001,2]
[328650100,1717677079138,10479.05596685,0.00010001,2]
[328650102,1717677094709,19769.39955785,0.00010001,2]
[328650103,1717677116637,12141.99228662,0.00010001,2]
[328650104,1717677168482,1036.98613146,0.00010001,2]
[328650105,1717677170806,14534.74586151,0.00010001,2]
[328650106,1717677176189,155.0,0.00010001,2]
[328650107,1717677182507,38703.22316617,0.00010001,2]
[328650108,1717677601449,171.13160003,5e-05,2]
[328650109,1717677602403,157.40694559,7.501e-05,2]
[328650110,1717677608493,8257.50605791,0.00010001,2]
[328650111,1717677608519,5000.0,0.00010001,2]
[328650112,1717677608543,1000.0,0.00010001,2]
[328650113,1717677608567,1000.0,0.00010001,2]
[328650114,1717677616301,1597.972895,9.951e-05,2]
[328650115,1717677644866,10532.44542063,0.0001,2]
[328650116,1717677664980,155.0,0.0001,2]
[328650117,1717677665581,-2000.0,0.00010001,2]
[328650118,1717677669782,1067.04191087,0.0001,2]
[328650119,1717677674101,1218.39220414,0.0001,2]
[328650120,1717677729630,262.52303666,0.0001,2]
[328650121,1717677747351,347.51456549,0.0001,2]
[328650122,1717677755726,155.0,0.0001,2]
[328650123,1717677806982,5880.84,0.0001,2]
[328650124,1717677914111,-4000.0,0.00010001,2]
[328650125,1717677914856,-4000.0,0.00010001,2]
[328650126,1717677915367,-4000.0,0.00010001,2]
[328650127,1717677915715,-4000.0,0.00010001,2]
[328650128,1717677916446,-4000.0,0.00010001,2]
[328650129,1717677916505,-4000.0,0.00010001,2]
[328650130,1717677916904,-4000.0,0.00010001,2]
[328650131,1717677917307,-4000.0,0.00010001,2]
[328650132,1717677917654,-4000.0,0.00010001,2]
[328650133,1717677919098,-4000.0,0.00010001,2]
[328650134,1717677919174,-4000.0,0.00010001,2]
[328650135,1717677919272,-4000.0,0.00010001,2]
[328650136,1717677920092,-4000.0,0.00010001,2]
[328650137,1717677920760,-4000.0,0.00010001,2]
[328650138,1717677921387,-4000.0,0.00010001,2]
[328650139,1717677955575,-690.0,0.00010001,2]
[328650140,1717677970815,-267.13963451,0.00010001,2]
[328650141,1717677979816,337.29325294,0.00011596,2]
[328650142,1717677982639,810.86729719,0.00010001,2]
[328650153,1717678230637,164.66,0.00011244,2]
[328650167,1717678232001,-150.0,0.00011694,2]
[328650169,1717678232010,-785.8451137,0.00011795,2]
[328650170,1717678232019,-1163.5424166,0.000118,2]
[328650171,1717678232029,-563.49,0.0001285,2]
[328650172,1717678232038,-7132.52418857,0.00013,2]
[328650173,1717678232074,-856.26166783,0.00013,2]
[328650174,1717678232147,-1059.08000022,0.00013,2]
[328650175,1717678232159,-364.89664003,0.00013,2]
[328650176,1717678232168,-150.0,0.00013014,2]
[328650177,1717678232178,-579.8270076,0.0001305,2]
[328650178,1717678232190,-1119.44553033,0.0001305,2]
[328650179,1717678232226,-3312.70312275,0.0001305,2]
[328650180,1717678232236,-460.54321371,0.00013298,2]
[328650181,1717678232246,-625.70433105,0.00013438,2]
[328650182,1717678232256,-499.99,0.00013438,2]
[328650183,1717678232265,-1000.0,0.000135,2]
[328650184,1717678232275,-23900.0,0.00013672,2]
[328650185,1717678232284,-1927.4612,0.000139,2]
[328650186,1717678232293,-1000.0,0.000139,2]
[328650187,1717678232303,-175.52586236,0.0001391,2]
[328650188,1717678232312,-6803.21915933,0.0001391,2]
[328650189,1717678232321,-683.45718749,0.0001391,2]
[328650190,1717678232331,-192.4468101,0.0001391,2]
[328650191,1717678232341,-2146.90543146,0.00013987,2]
[328650192,1717678232350,-174.86257572,0.0001399,2]
[328650193,1717678232361,-157.38545978,0.00013998,2]
[328650194,1717678232371,-1066.86599008,0.00013998,2]
[328650195,1717678232380,-185.85933177,0.00013998,2]
[328650196,1717678232390,-535.99330686,0.00013998,2]
[328650197,1717678232400,-309.95173225,0.00013998,2]
[328650198,1717678232409,-572.99744113,0.00013999,2]
[328650199,1717678232418,-155.0,0.00013999,2]
[328650200,1717678232428,-1909.476,0.00013999,2]
[328650201,1717678232437,-23483.23563812,0.00014,2]
[328650202,1717678232449,-3463.7999996,0.00014,2]
[328650224,1717678233043,-800.5291891,0.00014,2]
[328650225,1717678233055,-1082.26155855,0.00014,2]
[328650226,1717678233067,-3122.66084388,0.00014,2]
[328650227,1717678233078,-810.12234657,0.00014,2]
[328650228,1717678233094,-1231.85132041,0.00014,2]
[328650229,1717678233106,-311.84172578,0.00014,2]
[328650255,1717678238147,-319.47107319,0.0001391,2]
[328650257,1717678238159,-484.33780806,0.00014,2]
[328650259,1717678238171,-403.80780873,0.00014,2]
[328650261,1717678238183,-32490.41670395,0.00014,2]
[328650270,1717678238331,-1675.80714517,0.00014,2]
[328650271,1717678238343,-3077.5582141,0.00014,2]
[328650272,1717678238354,-1032.55143008,0.00014,2]
[328650273,1717678238366,-285.3457136,0.00014,2]
[328650274,1717678238378,-530.87897914,0.00014,2]
[328650275,1717678238391,-335.125,0.00014,2]
[328650276,1717678238402,-346.7403356,0.00014,2]
[328650277,1717678238419,-848311.19347566,0.00014,2]
[328650278,1717678238493,-566.48468486,0.00014,2]
[328650279,1717678238505,-3804.36369245,0.00014,2]
[328650285,1717678238791,-19406.82021092,0.00014,2]
[328650286,1717678240590,-1751.57451514,0.00014,2]
[328650288,1717678240680,-783.43979175,0.00014,2]
[328650289,1717678241497,-445.40323515,0.00014,2]
[328650290,1717678241724,-1368.11131041,0.00014,2]
[328650291,1717678241737,-5338.905216,0.00014,2]
[328650292,1717678241749,-273.80889003,0.00014,2]
[328650293,1717678241771,-1012.16957982,0.00014,2]
[328650297,1717678243922,-2098.22094398,0.00014,2]
[328650299,1717678243934,-1494.09281786,0.00014,2]
[328650300,1717678243945,-3011.62854086,0.00014,2]
[328650301,1717678243958,-71404.14583962,0.00014,2]
[328650302,1717678243971,-345.30254868,0.00014,2]
[328650303,1717678244007,-370.78580566,0.00014,2]
[328650304,1717678244078,-843.118017,0.00014,2]
[328650305,1717678244303,-770.51408107,0.00014,2]
[328650306,1717678244315,-12504.81954877,0.00014,2]
[328650307,1717678244326,-2911.57008171,0.00014,2]
[328650308,1717678244338,-2432.00660202,0.00014,2]
[328650309,1717678244388,-302.79949038,0.00014,2]
[328650310,1717678244400,-734.84878836,0.00014,2]
[328650311,1717678244412,-237443.53187303,0.00014,2]
[328650312,1717678244476,-15362.37633037,0.00014,2]
[328650313,1717678244488,-614.98003177,0.00014,2]
[328650330,1717678245875,-7654.13732153,0.00014,2]
[328650375,1717678246240,-356.10575,0.00014,2]
[328650401,1717678246604,-14841.168855,0.00014,2]
[328650403,1717678246616,-1847.088,0.00014,2]
[328650410,1717678281859,156.01882306,0.00010499,2]
[328650412,1717678370125,50000.0,0.0003,40]
[328650413,1717678417892,707.78,0.00011148,2]
[328650414,1717678439504,-163.18081514,0.00012344,2]
[328650415,1717678439528,-3384.77160162,0.00012344,2]
[328650416,1717678439554,-407.3473408,0.00012344,2]
[328650417,1717678439578,-1276.4979732,0.00012345,2]
[328650418,1717678439601,-155.0,0.00012345,2]
[328650419,1717678439623,-269.07320624,0.00012346,2]
[328650420,1717678439646,-166.51787557,0.00012347,2]
[328650421,1717678439669,-3017.14790964,0.00012347,2]
[328650422,1717678439690,-282.76675085,0.00012348,2]
[328650423,1717678439712,-2123.32774002,0.00012348,2]
[328650424,1717678439734,-645.39979882,0.00012349,2]
[328650425,1717678439758,-1252.54145949,0.00012349,2]
[328650426,1717678439783,-3756.42752861,0.00012349,2]
[328650427,1717678555432,-4081.0,0.00012339,2]
[328650428,1717678565031,2289.84,5e-05,4]
[328650429,1717678565053,1000.0,5e-05,4]
[328650430,1717678565075,1556.2409923,5e-05,4]
[328650431,1717678565098,4000.0,5e-05,4]
[328650432,1717678565119,1153.9190077,5e-05,4]
[328650433,1717678743004,2846.0809923,5e-05,2]
[328650434,1717678743026,4000.0,5e-05,2]
[328650435,1717678743048,1859.90148787,5e-05,2]
[328650436,1717678747211,2140.09851213,5e-05,2]
[328650437,1717678747241,4000.0,5e-05,2]
[328650438,1717678747273,1944.29093665,5e-05,2]
[328650441,1717678849472,349.39551921,5e-05,2]
[328650442,1717678849679,362.81476569,5e-05,2]
[328650443,1717678849849,155.0,5e-05,2]
[328650447,1717679379012,672.39,0.00010523,2]
[328650455,1717679411274,516.10877845,0.00010523,2]
[328650462,1717679432339,-1390.06,0.00010522,2]
[328650463,1717679432356,-1430.56805189,0.00010522,2]
[328650464,1717679432369,-1900.48321668,0.00010522,2]
[328650465,1717679432379,-30868.07846175,0.00010523,2]
[328650466,1717679432389,-1880.78064968,0.00011896,2]
[328650467,1717679432495,-800.07111468,0.00011896,2]
[328650468,1717679432536,-336.29614528,0.00011896,2]
[328650469,1717679432547,-1067.04191087,0.00011896,2]
[328650470,1717679432557,-1218.39220414,0.00011897,2]
[328650471,1717679432567,-162.75469252,0.00011898,2]
[328650472,1717679432578,-38.78922802,0.00011898,2]
[328650473,1717679432588,-2348.49456156,0.00011898,2]
[328650474,1717679432597,-490.51195624,0.00011899,2]
[328650475,1717679432609,-2894.25964538,0.00011899,2]
[328650476,1717679432619,-429.53862842,0.00011899,2]
[328650477,1717679432629,-481.69810902,0.000119,2]
[328650478,1717679432639,-150.0,0.00011903,2]
[328650479,1717679432649,-215.10652378,0.00011909,2]
[328650480,1717679432658,-1248.84481442,0.00012006,2]
[328650481,1717679432668,-162.9981871,0.00012015,2]
[328650482,1717679432677,-2865.19,0.00012015,2]
[328650483,1717679432686,-215.10652378,0.00012354,2]
[328650484,1717679432696,-499.99,0.00012354,2]
[328650485,1717679432705,-23900.0,0.00012362,2]
[328650486,1717679432715,-4793.83334399,0.00012454,2]
[328650487,1717679432725,-188.55672582,0.00012458,2]
[328650488,1717679432735,-155.0,0.00012599,2]
[328650489,1717679432744,-1026.01,0.00012599,2]
[328650490,1717679432754,-1237.8,0.0001275,2]
[328650491,1717679432764,-250.0,0.0001275,2]
[328650492,1717679432773,-171.06,0.00012779,2]
[328650493,1717679432783,-672.39,0.00012787,2]
[328650494,1717679432792,-1000.0,0.00012828,2]
[328650495,1717679432803,-250.0,0.00012861,2]
[328650497,1717679432812,-210.0,0.00013093,2]
[328650499,1717679432822,-1324.59095219,0.00013298,2]
[328650501,1717679432831,-251.87828571,0.00013858,2]
[328650503,1717679432840,-1248.1082,0.000139,2]
[328650504,1717679432850,-696.0995,0.000139,2]
[328650505,1717679432859,-7275.69546551,0.000139,2]
[328650506,1717679432869,-1486.58263116,0.000139,2]
[328650507,1717679432878,-320.56643694,0.000139,2]
[328650508,1717679432888,-179.6194651,0.000139,2]
[328650509,1717679432897,-824.23,0.00013988,3]
[328650510,1717679432907,-152.04,0.0001399,2]
[328650511,1717679432916,-174.86257572,0.0001399,2]
[328650512,1717679432926,-166.72253563,0.00013996,2]
[328650513,1717679432935,-644.15206775,0.00013996,2]
[328650514,1717679432945,-155.0,0.00013996,2]
[328650515,1717679432954,-361.06846999,0.00013996,2]
[328650516,1717679432963,-1276.02810486,0.00013996,2]
[328650517,1717679432972,-407.24197213,0.00013996,2]
[328650518,1717679432981,-162.97578809,0.00013996,2]
[328650519,1717679432990,-283.32110108,0.00013996,2]
[328650520,1717679432999,-5281.12326734,0.00013996,2]
[328650521,1717679433009,-792.634007,0.00013996,2]
[328650522,1717679433019,-156.40846583,0.00013996,2]
[328650523,1717679433028,-1313.45901668,0.00013996,2]
[328650524,1717679433037,-155.17031669,0.00013996,2]
[328650525,1717679433048,-345.51334506,0.00013996,2]
[328650526,1717679433059,-4441.68139867,0.00013997,2]
[328650527,1717679433069,-685.14013903,0.00013998,2]
[328650528,1717679433645,-371.6925449,0.00013998,2]
[328650529,1717679438205,-1311.57678886,0.00013998,2]
[328650532,1717679438214,-311.25097915,0.00013998,2]
[328650534,1717679438225,-325.41430204,0.00013998,2]
[328650535,1717679438234,-155.0,0.00013998,2]
[328650536,1717679438244,-327.55896472,0.00013998,2]
[328650537,1717679438253,-15.93772805,0.00013998,2]
[328650538,1717679438265,-140.54655409,0.00013998,2]
[328650539,1717679438274,-1067.18004523,0.00013998,2]
[328650540,1717679438285,-57.78404369,0.00013998,2]
[328650541,1717679438298,-178.193979,0.00013998,2]
[328650542,1717679438307,-125.19749541,0.00013998,2]
[328650543,1717679438319,-33.89283848,0.00013998,2]
[328650544,1717679438328,-263.90064672,0.00013998,2]
[328650545,1717679438338,-155.87288091,0.00013998,2]
[328650546,1717679438348,-155.83164403,0.00013998,2]
[328650547,1717679438358,-727.27648159,0.00013998,2]
[328650548,1717679438370,-875.33626534,0.00013998,2]
[328650549,1717679438389,-329.53591667,0.00013998,2]
[328650550,1717679438401,-476.68336221,0.00013998,2]
[328650551,1717679438423,-0.85148196,0.00013998,2]
[328650552,1717679438435,-368.4034386,0.00013998,2]
[328650553,1717679438455,-1291.06,0.00013998,2]
[328650554,1717679438467,-224.20257866,0.00013998,2]
[328650555,1717679438477,-208.9116436,0.00013998,2]
[328650556,1717679438487,-209.99387941,0.00013998,2]
[328650557,1717679438497,-157.8016636,0.00013998,2]
[328650558,1717679438506,-306.53561288,0.00013998,2]
[328650559,1717679438516,-248.92686412,0.00013998,2]
[328650560,1717679438525,-238.44860959,0.00013998,2]
[328650561,1717679438535,-156.47913975,0.00013998,2]
[328650562,1717679438693,-156.21977078,0.00013998,2]
[328650563,1717679438703,-178.08706941,0.00013998,2]
[328650564,1717679438713,-155.41908413,0.00013998,2]
[328650565,1717679438723,-428.37179358,0.00013998,2]
[328650566,1717679438733,-275.7718618,0.00013998,2]
[328650567,1717679438743,-250.05519525,0.00013998,2]
[328650568,1717679438752,-156.45668317,0.00013998,2]
[328650569,1717679438762,-276.57579353,0.00013998,2]
[328650570,1717679438772,-241.59005071,0.00013998,2]
[328650571,1717679438781,-157.47616147,0.00013998,2]
[328650572,1717679438791,-155.24268003,0.00013998,2]
[328650573,1717679438800,-505.69852393,0.00013998,2]
[328650574,1717679438810,-155.0,0.00013998,2]
[328650575,1717679438820,-364.77108528,0.00013998,2]
[328650577,1717679438829,-155.69665846,0.00013998,2]
[328650579,1717679438839,-301.06984484,0.00013998,2]
[328650580,1717679438848,-156.85861452,0.00013998,2]
[328650581,1717679438857,-208.35756944,0.00013998,2]
[328650583,1717679438867,-179.66541276,0.00013998,2]
[328650585,1717679438876,-27899.43688236,0.00013998,2]
[328650587,1717679438886,-170.69238991,0.00013998,2]
[328650589,1717679438896,-155.0,0.00013999,2]
[328650591,1717679438905,-8026.46655517,0.00013999,2]
[328650594,1717679438917,-267.4029094,0.00013999,2]
[328650598,1717679438929,-1171.11856861,0.00013999,2]
[328650600,1717679438941,-396.96657,0.00013999,2]
[328650602,1717679438953,-1104.77017933,0.00013999,2]
[328650604,1717679438963,-23017.07353997,0.00014,2]
[328650607,1717679438979,-7252.123313,0.00014,2]
[328650614,1717679439042,-203578.87411436,0.00014,2]
[328650616,1717679439054,-52989.83884914,0.00014,2]
[328650619,1717679439067,-591118.29138688,0.00014,2]
[328650621,1717679439078,-4748.0855,0.00014,2]
[328650623,1717679439088,-289.66478697,0.00014,2]
[328650625,1717679439099,-181.09443251,0.00014,2]
[328650627,1717679439109,-333.17681456,0.00014,2]
[328650629,1717679439119,-155.0,0.00014,2]
[328650631,1717679439129,-3000.0,0.00014,2]
[328650633,1717679439143,-3738.15,0.0001401,2]
[328650635,1717679439154,-3653.616,0.0001401,2]
[328650637,1717679439163,-173.59,0.00014075,2]
[328650639,1717679439174,-258.0,0.00014403,2]
[328650641,1717679439184,-1000.0,0.00014432,2]
[328650643,1717679439194,-161.43246097,0.000148,2]
[328650645,1717679439205,-12431.0,0.00014838,2]
[328650647,1717679439215,-160.7227396,0.000149,2]
[328650649,1717679439228,-179.61946509,0.000149,2]
[328650651,1717679439238,-226729.74988908,0.00015,2]
[328650654,1717679439259,-545.03939917,0.00015,2]
[328650656,1717679439273,-13169.08291731,0.00015,2]
[328650659,1717679439302,-873.81182588,0.00015,2]
[328650812,1717679441127,-39485.92638662,0.00015,2]
[328650814,1717679441139,-1504.31721963,0.00015,2]
[328650815,1717679441150,-5341.56197791,0.00015,2]
[328650957,1717679442693,-731.98818224,0.00015,2]
[328651031,1717679443367,-3384.77160162,0.00014999,2]
[328651034,1717679443377,-137528.70710737,0.00015,2]
[328651036,1717679443388,-20252.7292446,0.00015,2]
[328651038,1717679443399,-384.34999965,0.00015,2]
[328651053,1717679443534,-5.46304206,0.00015,2]
[328651055,1717679443546,-90087.12001259,0.00015,2]
[328651057,1717679443558,-412.05918344,0.00015,2]
[328651060,1717679443577,-628.18,0.00015,2]
[328651062,1717679443588,-5771.90098486,0.00015,2]
[328651064,1717679443600,-5413.42844205,0.00015,2]
[328651067,1717679443611,-56978.88144297,0.00015,2]
[328651069,1717679443622,-378.703701,0.00015,2]
[328651127,1717679444171,-1271.95076509,0.00015,2]
[328651129,1717679444182,-2495.29999965,0.00015,2]
[328651131,1717679444194,-681.83583395,0.00015,2]
[328651133,1717679444204,-168048.43291874,0.00015,2]
[328651136,1717679444216,-17070.53985228,0.00015,2]
[328651138,1717679444228,-759.86118816,0.00015,2]
[328651141,1717679444246,-3174.82,0.00015,2]
[328651143,1717679444258,-79907.7153274,0.00015,2]
[328651145,1717679444267,-166.86126885,0.00015,2]
[328651147,1717679444276,-620.00333459,0.00015,2]
[328651149,1717679444286,-672.39,0.00015051,2]
[328651151,1717679444300,-7275.69546549,0.00015355,2]
[328651153,1717679444310,-1237.8,0.0001549,2]
[328651155,1717679444319,-1000.0,0.00016035,2]
[328651157,1717679444328,-1486.58263112,0.00016186,2]
[328651159,1717679444339,-3027.0,0.000163,2]
[328651161,1717679444348,-846.0,0.000163,2]
[328651163,1717679444358,-1232.50469214,0.000165,2]
[328651165,1717679444370,-7275.69546549,0.00016809,2]
[328651167,1717679444379,-173.59,0.00017062,2]
[328651169,1717679444388,-3661.466,0.00017164,2]
[328651171,1717679444397,-672.39,0.00017315,2]
[328651173,1717679444407,-1000.0,0.00017639,2]
[328651175,1717679444416,-1237.8,0.0001823,2]
[328651177,1717679444426,-7275.69546549,0.00018264,2]
[328651179,1717679444435,-1486.58263112,0.00018471,2]
[328651181,1717679444444,-177.592,0.00018919,2]
[328651183,1717679444453,-1303.0,0.00018919,2]
[328651185,1717679444463,-216.0,0.00018919,2]
[328651187,1717679444472,-545.0,0.00018919,2]
[328651189,1717679444482,-3172.0,0.00018919,2]
[328651191,1717679444493,-2127.678,0.00018919,2]
[328651193,1717679444502,-3000.0,0.00019,2]
[328651195,1717679444513,-500.0,0.00019178,2]
[328651197,1717679444522,-500.0,0.00019178,2]
[328651199,1717679444531,-500.0,0.00019178,2]
[328651201,1717679444541,-499.14942718,0.00019178,2]
[328651203,1717679444551,-500.0,0.00019178,2]
[328651205,1717679444560,-500.0,0.00019178,2]
[328651207,1717679444569,-500.0,0.00019178,2]
[328651209,1717679444578,-500.0,0.00019178,2]
[328651211,1717679444588,-500.0,0.00019178,2]
[328651213,1717679444597,-500.0,0.00019178,2]
[328651215,1717679444607,-500.0,0.00019178,2]
[328651217,1717679444616,-500.0,0.00019178,2]
[328651219,1717679444626,-500.0,0.00019178,2]
[328651221,1717679444635,-500.0,0.00019178,2]
[328651223,1717679444645,-500.0,0.00019178,2]
[328651225,1717679444654,-500.0,0.00019178,2]
[328651227,1717679444664,-500.0,0.00019178,2]
[328651228,1717679444673,-500.0,0.00019178,2]
[328651229,1717679444683,-500.0,0.00019178,2]
[328651230,1717679444692,-174.16250575,0.00019178,2]
[328651231,1717679444702,-500.0,0.00019178,2]
[328651232,1717679444711,-500.0,0.00019178,2]
[328651233,1717679444720,-212.0,0.00019178,2]
[328651234,1717679444732,-1000.0,0.00019242,2]
[328651236,1717679444742,-38015.0,0.00019471,2]
[328651238,1717679444752,-445.713,0.00019471,2]
[328651240,1717679444761,-612.0,0.00019471,2]
[328651242,1717679444770,-672.39,0.00019579,2]
[328651245,1717679444789,-264.46,0.00019656,15]
[328651247,1717679444800,-150.5,0.00019666,15]
[328651249,1717679444810,-150.5,0.00019676,15]
[328651251,1717679444819,-150.5,0.00019686,15]
[328651253,1717679444829,-504.0,0.00019686,15]
[328651256,1717679444839,-150.5,0.00019696,15]
[328651258,1717679444848,-504.0,0.00019696,15]
[328651260,1717679444858,-150.5,0.00019706,15]
[328651262,1717679444867,-261.5,0.00019706,15]
[328651264,1717679444876,-504.0,0.00019706,15]
[328651266,1717679444886,-166.06,0.00019716,15]
[328651268,1717679444897,-7275.69546549,0.00019718,2]
[328651270,1717679444906,-257.82046593,0.0002,2]
[328651272,1717679444915,-155.5707998,0.0002,2]
[328651274,1717679444925,-226.60187199,0.000201,2]
[328651276,1717679444935,-1486.58263112,0.00020757,2]
[328651297,1717679445128,-7275.69546549,0.00021173,2]
[328651300,1717679445140,-204.13,0.00021358,2]
[328651302,1717679445150,-160.81,0.00021358,2]
[328651304,1717679445160,-169.502,0.00021358,2]
[328651306,1717679445170,-1649.0,0.00021358,2]
[328651308,1717679445179,-619.984,0.00021358,2]
[328651310,1717679445188,-1267.0,0.00021358,2]
[328651312,1717679445198,-1830.0,0.00021358,2]
[328651314,1717679445208,-442.76,0.00021358,2]
[328651316,1717679445217,-672.39,0.00021843,2]
[328651318,1717679445228,-320.56643692,0.000219,2]
[328651320,1717679445237,-502.21,0.00021918,2]
[328651322,1717679445246,-250.0,0.00021918,2]
[328651324,1717679445255,-949.35,0.00021918,2]
[328651326,1717679445264,-7275.69546549,0.00022627,2]
[328651328,1717679445274,-367.49147748,0.00023,2]
[328651330,1717679445289,-1486.58263112,0.00023043,2]
[328651332,1717679445298,-900.0,0.00023778,2]
[328651334,1717679445308,-2280.05080193,0.00024,3]
[328651336,1717679445318,-3000.0,0.00024,2]
[328651338,1717679445328,-500.0,0.00024,2]
[328651340,1717679445338,-7275.69546549,0.00024082,2]
[328651342,1717679445352,-672.39,0.00024106,2]
[328651344,1717679445363,-565.0,0.00024195,2]
[328651346,1717679445372,-900.0,0.00024326,2]
[328651348,1717679445382,-1446.745,0.00024358,2]
[328651350,1717679445391,-615.0,0.00024358,2]
[328651352,1717679445401,-1267.0,0.00024358,2]
[328651354,1717679445411,-1830.0,0.00024358,2]
[328651356,1717679445421,-441.0,0.00024358,2]
[328651358,1717679445431,-159.65,0.00024384,2]
[328651360,1717679445440,-177.84,0.00024384,2]
[328651363,1717679445450,-370.85,0.00024384,2]
[328651365,1717679445460,-500.0,0.000247,7]
[328651367,1717679445470,-608.53508879,0.00024799,2]
[328651369,1717679445480,-608.53508879,0.00024799,2]
[328651371,1717679445489,-608.53508879,0.00024799,2]
[328651373,1717679445498,-608.53508879,0.00024799,2]
[328651375,1717679445508,-900.0,0.00024874,2]
[328651377,1717679445518,-146957.8333706,0.00025,15]
[328651379,1717679445529,-713.77198143,0.00025,2]
[328651381,1717679445539,-706.05483356,0.00025,2]
[328651383,1717679445548,-1250.0,0.00025,2]
[328651385,1717679445558,-800.0,0.00025148,2]
[328651387,1717679445567,-500.0,0.00025148,2]
[328651389,1717679445577,-1486.58263112,0.00025329,2]
[328651391,1717679445587,-900.0,0.00025422,2]
[328651393,1717679445597,-7275.69546549,0.00025536,2]
[328651395,1717679445607,-800.0,0.00025696,2]
[328651397,1717679445616,-900.0,0.0002597,2]
[328651399,1717679445626,-150.74025552,0.00026,4]
[328651401,1717679445636,-1228.27381362,0.00026,5]
[328651403,1717679445646,-505.81932521,0.00026244,2]
[328651405,1717679445656,-800.0,0.00026244,2]
[328651407,1717679445666,-500.0,0.00026244,2]
[328651409,1717679445675,-500.0,0.00026244,2]
[328651411,1717679445685,-608.53508879,0.00026344,2]
[328651413,1717679445694,-672.39,0.0002637,2]
[328651415,1717679445704,-152.0,0.00026711,3]
[328651417,1717679445714,-800.0,0.00026792,2]
[328651419,1717679445724,-7275.69546549,0.00026991,2]
[328651421,1717679445736,-18534.80354737,0.00027,2]
[328651423,1717679445747,-1300.0,0.00027,2]
[328651425,1717679445757,-900.0,0.00027066,2]
[328651427,1717679445767,-1585.31781982,0.000272,2]
[328651430,1717679445777,-1286.67863171,0.00027297,2]
[328651432,1717679445787,-800.0,0.0002734,2]
[328651434,1717679445797,-500.0,0.0002734,2]
[328651436,1717679445807,-500.0,0.0002734,2]
[328651438,1717679445817,-806.82910337,0.0002739,2]
[328651440,1717679445827,-105229.96580609,0.00027397,13]
[328651442,1717679445837,-500.0,0.00027397,4]
[328651444,1717679445846,-512.25996878,0.00027397,4]
[328651446,1717679445856,-234.78852137,0.00027397,4]
[328651448,1717679445865,-500.0,0.00027397,4]
[328651450,1717679445875,-500.0,0.00027397,4]
[328651452,1717679445884,-500.0,0.00027397,4]
[328651454,1717679445894,-413.54196905,0.00027397,4]
[328651456,1717679445904,-509.10354721,0.00027397,4]
[328651458,1717679445914,-500.0,0.00027397,4]
[328651460,1717679445924,-509.65406062,0.00027397,4]
[328651463,1717679445933,-500.0,0.00027397,4]
[328651466,1717679445960,-323.40707279,0.00027397,2]
[328651469,1717679445980,-356.49467355,0.00027397,4]
[328651472,1717679445999,-419.94027421,0.00027397,4]